[Event "Titled Tuesday Blitz October 25 Late 2022"]
[White "Jobava, Baadur"]
[Black "Hansen, Eric"]
[WhiteFideId "13601520"]
[BlackFideId "2606771"]
[WhiteElo "2582"]
[BlackElo "2568"]
[Result "0-1"]
[Round "10"]
[TimeControl "180+1"]
[Date "2022.10.26"]
[WhiteClock "0:00:13"]
[BlackClock "0:00:10"]

1. e4 {[%clk 0:02:58]}  e5 {[%clk 0:02:56]} 2. Nf3 {[%clk 0:02:57]}  Nc6 {[%clk 0:02:55]} 3. d4 {[%clk 0:02:56]}  exd4 {[%clk 0:02:55]} 4. Nxd4 {[%clk 0:02:57]}  Nf6 {[%clk 0:02:53]} 5. Nxc6 {[%clk 0:02:57]}  bxc6 {[%clk 0:02:53]} 6. Bd3 {[%clk 0:02:58]}  d5 {[%clk 0:02:47]} 7. exd5 {[%clk 0:02:59]}  cxd5 {[%clk 0:02:45]} 8. O-O {[%clk 0:02:59]}  Be7 {[%clk 0:02:40]} 9. h3 {[%clk 0:02:59]}  O-O {[%clk 0:02:41]} 10. Nd2 {[%clk 0:03:00]}  Re8 {[%clk 0:02:33]} 11. Re1 {[%clk 0:02:58]}  c5 {[%clk 0:02:28]} 12. b3 {[%clk 0:02:58]}  Bb7 {[%clk 0:02:15]} 13. Bb2 {[%clk 0:02:56]}  d4 {[%clk 0:02:10]} 14. Bb5 {[%clk 0:02:51]}  Rf8 {[%clk 0:02:10]} 15. Bf1 {[%clk 0:02:48]}  Nd5 {[%clk 0:02:03]} 16. Ne4 {[%clk 0:02:36]}  Qc7 {[%clk 0:02:01]} 17. Qd2 {[%clk 0:02:16]}  Rad8 {[%clk 0:01:56]} 18. Rad1 {[%clk 0:02:07]}  h6 {[%clk 0:01:43]} 19. c3 {[%clk 0:01:42]}  f5 {[%clk 0:01:27]} 20. Ng3 {[%clk 0:01:42]}  f4 {[%clk 0:01:23]} 21. Ne4 {[%clk 0:01:42]}  f3 {[%clk 0:01:19]} 22. g3 {[%clk 0:01:39]}  Ne3 {[%clk 0:01:17]} 23. cxd4 {[%clk 0:01:17]}  Nxd1 {[%clk 0:00:59]} 24. Qxd1 {[%clk 0:01:18]}  cxd4 {[%clk 0:00:54]} 25. Qd3 {[%clk 0:00:40]}  Kh8 {[%clk 0:00:43]} 26. h4 {[%clk 0:00:37]}  Bb4 {[%clk 0:00:40]} 27. Rc1 {[%clk 0:00:33]}  Qe7 {[%clk 0:00:40]} 28. Nd2 {[%clk 0:00:31]}  Ba6 {[%clk 0:00:32]} 29. Qxa6 {[%clk 0:00:30]}  Bxd2 {[%clk 0:00:32]} 30. Rc6 {[%clk 0:00:27]}  Rf6 {[%clk 0:00:18]} 31. Rxf6 {[%clk 0:00:27]}  Qxf6 {[%clk 0:00:18]} 32. Qxa7 {[%clk 0:00:27]}  Bc3 {[%clk 0:00:16]} 33. Ba3 {[%clk 0:00:24]}  Re8 {[%clk 0:00:13]} 34. Bd3 {[%clk 0:00:18]}  Qe6 {[%clk 0:00:10]} 35. Qa4 {[%clk 0:00:13]}  Qe1+ {[%clk 0:00:10]} 36. Bf1 {[%clk 0:00:12]}  Qxf1+ {[%clk 0:00:10]} 37. Kxf1 {[%clk 0:00:13]}  Re1# {[%clk 0:00:10]} 0-1


[Site "https://www.chess.com"]

[Event "Titled Tuesday Blitz October 25 Late 2022"]
[White "Kabanova, Ekaterina"]
[Black "Radovic, Luka"]
[WhiteFideId "24112917"]
[BlackFideId "911569"]
[WhiteElo "2141"]
[BlackElo "2257"]
[Result "0-1"]
[Round "10"]
[TimeControl "180+1"]
[Date "2022.10.26"]
[WhiteClock "0:01:15"]
[BlackClock "0:00:58"]

1. c4 {[%clk 0:03:00]}  e6 {[%clk 0:02:57]} 2. Nf3 {[%clk 0:02:59]}  d5 {[%clk 0:02:57]} 3. e3 {[%clk 0:03:00]}  Nf6 {[%clk 0:02:57]} 4. a3 {[%clk 0:03:00]}  c5 {[%clk 0:02:56]} 5. Qc2 {[%clk 0:03:00]}  Nc6 {[%clk 0:02:57]} 6. d3 {[%clk 0:03:00]}  Be7 {[%clk 0:02:56]} 7. Nbd2 {[%clk 0:03:01]}  O-O {[%clk 0:02:56]} 8. Be2 {[%clk 0:03:01]}  e5 {[%clk 0:02:56]} 9. O-O {[%clk 0:03:02]}  h6 {[%clk 0:02:51]} 10. cxd5 {[%clk 0:03:02]}  Nxd5 {[%clk 0:02:50]} 11. b3 {[%clk 0:03:02]}  Re8 {[%clk 0:02:49]} 12. Bb2 {[%clk 0:03:03]}  Bf8 {[%clk 0:02:50]} 13. Rac1 {[%clk 0:03:03]}  b6 {[%clk 0:02:49]} 14. h3 {[%clk 0:03:04]}  Bb7 {[%clk 0:02:49]} 15. Rfe1 {[%clk 0:03:04]}  Rc8 {[%clk 0:02:48]} 16. Nc4 {[%clk 0:03:04]}  Qc7 {[%clk 0:02:42]} 17. Qb1 {[%clk 0:03:04]}  b5 {[%clk 0:02:42]} 18. Ncd2 {[%clk 0:03:04]}  f5 {[%clk 0:02:39]} 19. Qa1 {[%clk 0:03:03]}  e4 {[%clk 0:02:33]} 20. dxe4 {[%clk 0:03:01]}  fxe4 {[%clk 0:02:34]} 21. Nh2 {[%clk 0:03:00]}  a6 {[%clk 0:02:26]} 22. Qb1 {[%clk 0:02:53]}  Qe7 {[%clk 0:02:03]} 23. Bg4 {[%clk 0:02:53]}  Rcd8 {[%clk 0:02:02]} 24. Bf5 {[%clk 0:02:45]}  Nf6 {[%clk 0:01:50]} 25. Red1 {[%clk 0:02:30]}  Rd5 {[%clk 0:01:35]} 26. Bg6 {[%clk 0:02:26]}  Red8 {[%clk 0:01:34]} 27. Nxe4 {[%clk 0:01:56]}  Rxd1+ {[%clk 0:01:29]} 28. Rxd1 {[%clk 0:01:56]}  Rxd1+ {[%clk 0:01:21]} 29. Qxd1 {[%clk 0:01:55]}  Ne5 {[%clk 0:01:16]} 30. Nxf6+ {[%clk 0:01:40]}  Qxf6 {[%clk 0:01:16]} 31. Qc2 {[%clk 0:01:34]}  Qxg6 {[%clk 0:01:13]} 32. Qxg6 {[%clk 0:01:29]}  Nxg6 {[%clk 0:01:13]} 33. Ng4 {[%clk 0:01:28]}  h5 {[%clk 0:01:11]} 34. Nh2 {[%clk 0:01:26]}  Bd6 {[%clk 0:01:05]} 35. Nf1 {[%clk 0:01:26]}  Be5 {[%clk 0:01:06]} 36. Bc1 {[%clk 0:01:25]}  c4 {[%clk 0:01:06]} 37. bxc4 {[%clk 0:01:25]}  bxc4 {[%clk 0:01:06]} 38. Nd2 {[%clk 0:01:25]}  c3 {[%clk 0:01:07]} 39. Nc4 {[%clk 0:01:25]}  Bf6 {[%clk 0:01:05]} 40. f3 {[%clk 0:01:24]}  Ne5 {[%clk 0:01:04]} 41. Nd6 {[%clk 0:01:16]}  Nd3 {[%clk 0:01:02]} 42. Nxb7 {[%clk 0:01:14]}  Nxc1 {[%clk 0:01:02]} 43. Nc5 {[%clk 0:01:15]}  Ne2+ {[%clk 0:00:58]} 44. Kf2 {[%clk 0:01:15]}  c2 {[%clk 0:00:58]} 0-1


[Site "https://www.chess.com"]

[Event "Titled Tuesday Blitz October 25 Late 2022"]
[White "Korobov, Anton"]
[Black "Paravyan, David"]
[WhiteFideId "14105730"]
[BlackFideId "4194985"]
[WhiteElo "2635"]
[BlackElo "2555"]
[Result "0-1"]
[Round "10"]
[TimeControl "180+1"]
[Date "2022.10.26"]
[WhiteClock "0:00:10"]
[BlackClock "0:00:09"]

1. d4 {[%clk 0:03:00]}  Nf6 {[%clk 0:02:59]} 2. c4 {[%clk 0:03:00]}  g6 {[%clk 0:02:59]} 3. Nc3 {[%clk 0:03:00]}  d5 {[%clk 0:03:00]} 4. cxd5 {[%clk 0:03:00]}  Nxd5 {[%clk 0:03:01]} 5. e4 {[%clk 0:03:01]}  Nxc3 {[%clk 0:03:01]} 6. bxc3 {[%clk 0:03:01]}  Bg7 {[%clk 0:03:02]} 7. Bc4 {[%clk 0:03:02]}  c5 {[%clk 0:03:02]} 8. Ne2 {[%clk 0:03:03]}  O-O {[%clk 0:03:03]} 9. O-O {[%clk 0:03:02]}  Nc6 {[%clk 0:03:03]} 10. Be3 {[%clk 0:03:02]}  Bg4 {[%clk 0:03:04]} 11. f3 {[%clk 0:03:02]}  Na5 {[%clk 0:03:05]} 12. Bd3 {[%clk 0:02:59]}  cxd4 {[%clk 0:03:04]} 13. cxd4 {[%clk 0:03:00]}  Be6 {[%clk 0:03:05]} 14. d5 {[%clk 0:03:01]}  Bxa1 {[%clk 0:03:05]} 15. Qxa1 {[%clk 0:03:01]}  f6 {[%clk 0:02:59]} 16. h4 {[%clk 0:03:01]}  Bd7 {[%clk 0:02:57]} 17. h5 {[%clk 0:03:01]}  Rc8 {[%clk 0:02:39]} 18. hxg6 {[%clk 0:02:40]}  hxg6 {[%clk 0:02:39]} 19. Nf4 {[%clk 0:02:35]}  Nc4 {[%clk 0:02:35]} 20. Bxc4 {[%clk 0:02:31]}  Rxc4 {[%clk 0:02:36]} 21. Nxg6 {[%clk 0:02:26]}  Rf7 {[%clk 0:02:36]} 22. Nf4 {[%clk 0:02:11]}  Qa5 {[%clk 0:02:17]} 23. Qb2 {[%clk 0:01:44]}  Qc3 {[%clk 0:01:51]} 24. Qf2 {[%clk 0:01:40]}  Qc2 {[%clk 0:01:40]} 25. Qh4 {[%clk 0:01:13]}  Rh7 {[%clk 0:01:40]} 26. Nh5 {[%clk 0:01:04]}  Kh8 {[%clk 0:01:23]} 27. d6 {[%clk 0:00:41]}  Be8 {[%clk 0:01:01]} 28. dxe7 {[%clk 0:00:37]}  Rxh5 {[%clk 0:01:01]} 29. Qxf6+ {[%clk 0:00:37]}  Kh7 {[%clk 0:01:00]} 30. Bd4 {[%clk 0:00:30]}  Rxd4 {[%clk 0:01:00]} 31. Qxd4 {[%clk 0:00:31]}  Qc5 {[%clk 0:01:00]} 32. Rd1 {[%clk 0:00:26]}  Kg8 {[%clk 0:00:58]} 33. g4 {[%clk 0:00:24]}  Qxd4+ {[%clk 0:00:57]} 34. Rxd4 {[%clk 0:00:25]}  Ra5 {[%clk 0:00:55]} 35. Rd2 {[%clk 0:00:17]}  Kf7 {[%clk 0:00:54]} 36. Kf2 {[%clk 0:00:18]}  Kxe7 {[%clk 0:00:53]} 37. Kg3 {[%clk 0:00:17]}  Bf7 {[%clk 0:00:51]} 38. f4 {[%clk 0:00:14]}  Rxa2 {[%clk 0:00:49]} 39. Rd1 {[%clk 0:00:14]}  b5 {[%clk 0:00:20]} 40. f5 {[%clk 0:00:13]}  b4 {[%clk 0:00:14]} 41. e5 {[%clk 0:00:13]}  b3 {[%clk 0:00:14]} 42. g5 {[%clk 0:00:14]}  b2 {[%clk 0:00:14]} 43. Rb1 {[%clk 0:00:14]}  a5 {[%clk 0:00:11]} 44. g6 {[%clk 0:00:13]}  a4 {[%clk 0:00:10]} 45. Kf4 {[%clk 0:00:08]}  a3 {[%clk 0:00:10]} 46. f6+ {[%clk 0:00:09]}  Ke6 {[%clk 0:00:08]} 47. gxf7 {[%clk 0:00:09]}  Kxf7 {[%clk 0:00:09]} 48. Kf5 {[%clk 0:00:10]}  Ra1 {[%clk 0:00:09]} 49. e6+ {[%clk 0:00:10]}  Ke8 {[%clk 0:00:09]} 50. f7+ {[%clk 0:00:10]}  Ke7 {[%clk 0:00:09]} 0-1


[Site "https://www.chess.com"]

[Event "Titled Tuesday Blitz October 25 Late 2022"]
[White "Lawson, Eric"]
[Black "Gritsenko, Nikolai"]
[WhiteFideId "2604116"]
[BlackFideId "14112493"]
[WhiteElo "2552"]
[BlackElo "2389"]
[Result "0-1"]
[Round "10"]
[TimeControl "180+1"]
[Date "2022.10.26"]
[WhiteClock "0:00:25"]
[BlackClock "0:00:38"]

1. d4 {[%clk 0:03:00]}  d5 {[%clk 0:02:58]} 2. Nf3 {[%clk 0:02:58]}  Nc6 {[%clk 0:02:58]} 3. g3 {[%clk 0:02:58]}  Bg4 {[%clk 0:02:58]} 4. Bg2 {[%clk 0:02:59]}  Qd7 {[%clk 0:02:59]} 5. h3 {[%clk 0:02:59]}  Bf5 {[%clk 0:02:59]} 6. Nbd2 {[%clk 0:02:59]}  e6 {[%clk 0:02:54]} 7. c3 {[%clk 0:02:51]}  h6 {[%clk 0:02:49]} 8. O-O {[%clk 0:02:45]}  Bd6 {[%clk 0:02:47]} 9. Re1 {[%clk 0:02:44]}  Nf6 {[%clk 0:02:47]} 10. Nh4 {[%clk 0:02:40]}  Bh7 {[%clk 0:02:45]} 11. e4 {[%clk 0:02:37]}  dxe4 {[%clk 0:02:41]} 12. Nxe4 {[%clk 0:02:38]}  Nxe4 {[%clk 0:02:40]} 13. Bxe4 {[%clk 0:02:38]}  Bxe4 {[%clk 0:02:40]} 14. Rxe4 {[%clk 0:02:38]}  O-O-O {[%clk 0:02:39]} 15. Qe2 {[%clk 0:02:18]}  Rhe8 {[%clk 0:02:35]} 16. Nf3 {[%clk 0:02:14]}  f5 {[%clk 0:02:31]} 17. Re3 {[%clk 0:02:11]}  e5 {[%clk 0:02:06]} 18. Nxe5 {[%clk 0:02:07]}  Bxe5 {[%clk 0:01:59]} 19. dxe5 {[%clk 0:02:07]}  Nxe5 {[%clk 0:01:56]} 20. Kg2 {[%clk 0:01:52]}  Qc6+ {[%clk 0:01:38]} 21. f3 {[%clk 0:01:52]}  Nc4 {[%clk 0:01:06]} 22. Rxe8 {[%clk 0:01:52]}  Rxe8 {[%clk 0:01:06]} 23. Qf2 {[%clk 0:01:51]}  g5 {[%clk 0:00:59]} 24. b3 {[%clk 0:01:38]}  Ne5 {[%clk 0:00:58]} 25. c4 {[%clk 0:01:22]}  Nxf3 {[%clk 0:00:55]} 26. Be3 {[%clk 0:01:04]}  g4 {[%clk 0:00:51]} 27. hxg4 {[%clk 0:00:47]}  fxg4 {[%clk 0:00:50]} 28. Rh1 {[%clk 0:00:32]}  Ng5+ {[%clk 0:00:48]} 29. Kh2 {[%clk 0:00:30]}  Qf3 {[%clk 0:00:41]} 30. Re1 {[%clk 0:00:26]}  Qxf2+ {[%clk 0:00:40]} 31. Bxf2 {[%clk 0:00:25]}  Nf3+ {[%clk 0:00:38]} 0-1


[Site "https://www.chess.com"]

[Event "Titled Tuesday Blitz October 25 Late 2022"]
[White "Lindholt, Malik"]
[Black "Wiegmann, Sascha"]
[WhiteFideId "1404490"]
[BlackFideId "4682041"]
[WhiteElo "2020"]
[BlackElo "2302"]
[Result "0-1"]
[Round "10"]
[TimeControl "180+1"]
[Date "2022.10.26"]
[WhiteClock "0:00:03"]
[BlackClock "0:00:11"]

1. e4 {[%clk 0:03:00]}  c5 {[%clk 0:02:41]} 2. Nf3 {[%clk 0:02:59]}  d6 {[%clk 0:02:40]} 3. d4 {[%clk 0:03:00]}  cxd4 {[%clk 0:02:41]} 4. Nxd4 {[%clk 0:03:00]}  Nf6 {[%clk 0:02:40]} 5. Nc3 {[%clk 0:03:01]}  a6 {[%clk 0:02:41]} 6. Be3 {[%clk 0:02:58]}  e5 {[%clk 0:02:41]} 7. Nb3 {[%clk 0:02:57]}  Be6 {[%clk 0:02:42]} 8. Qd2 {[%clk 0:02:57]}  Nbd7 {[%clk 0:02:42]} 9. f3 {[%clk 0:02:56]}  Be7 {[%clk 0:02:42]} 10. g4 {[%clk 0:02:56]}  b5 {[%clk 0:02:40]} 11. g5 {[%clk 0:02:51]}  b4 {[%clk 0:02:38]} 12. gxf6 {[%clk 0:02:48]}  bxc3 {[%clk 0:02:38]} 13. Qxc3 {[%clk 0:02:48]}  Nxf6 {[%clk 0:02:37]} 14. O-O-O {[%clk 0:02:45]}  O-O {[%clk 0:02:36]} 15. Rg1 {[%clk 0:02:41]}  a5 {[%clk 0:02:27]} 16. Kb1 {[%clk 0:02:19]}  Qb8 {[%clk 0:02:05]} 17. Bh6 {[%clk 0:02:13]}  g6 {[%clk 0:01:40]} 18. Bxf8 {[%clk 0:02:12]}  Bxf8 {[%clk 0:01:41]} 19. Bc4 {[%clk 0:02:05]}  Bxc4 {[%clk 0:01:26]} 20. Qxc4 {[%clk 0:02:05]}  a4 {[%clk 0:01:27]} 21. Nc1 {[%clk 0:02:00]}  a3 {[%clk 0:01:26]} 22. b3 {[%clk 0:01:58]}  Qb6 {[%clk 0:01:16]} 23. Nd3 {[%clk 0:01:53]}  Nh5 {[%clk 0:01:09]} 24. Nb4 {[%clk 0:01:49]}  Qf2 {[%clk 0:01:03]} 25. Qf1 {[%clk 0:01:30]}  Qxh2 {[%clk 0:01:00]} 26. Rh1 {[%clk 0:01:14]}  Qf4 {[%clk 0:00:54]} 27. Nd5 {[%clk 0:00:58]}  Qg5 {[%clk 0:00:51]} 28. Qh3 {[%clk 0:00:55]}  Kh8 {[%clk 0:00:43]} 29. Rdg1 {[%clk 0:00:28]}  Qd2 {[%clk 0:00:41]} 30. Qg2 {[%clk 0:00:24]}  Qd4 {[%clk 0:00:39]} 31. c3 {[%clk 0:00:20]}  Qd3+ {[%clk 0:00:38]} 32. Ka1 {[%clk 0:00:21]}  Bh6 {[%clk 0:00:22]} 33. Rd1 {[%clk 0:00:12]}  Qb5 {[%clk 0:00:19]} 34. c4 {[%clk 0:00:11]}  Qc5 {[%clk 0:00:19]} 35. Qg4 {[%clk 0:00:09]}  Rg8 {[%clk 0:00:14]} 36. Qg2 {[%clk 0:00:08]}  Bg7 {[%clk 0:00:13]} 37. Rh2 {[%clk 0:00:07]}  Nf4 {[%clk 0:00:13]} 38. Qd2 {[%clk 0:00:04]}  Nxd5 {[%clk 0:00:13]} 39. cxd5 {[%clk 0:00:04]}  Rc8 {[%clk 0:00:11]} 40. Rdh1 {[%clk 0:00:03]}  h5 {[%clk 0:00:11]} 0-1


[Site "https://www.chess.com"]

[Event "Titled Tuesday Blitz October 25 Late 2022"]
[White "Machidon, Cristi"]
[Black "Graif, William"]
[WhiteFideId "13904590"]
[BlackFideId "2609835"]
[WhiteElo "2312"]
[BlackElo "2205"]
[Result "1-0"]
[Round "10"]
[TimeControl "180+1"]
[Date "2022.10.26"]
[WhiteClock "0:01:15"]
[BlackClock "0:00:10"]

1. d4 {[%clk 0:03:00]}  Nf6 {[%clk 0:02:58]} 2. c4 {[%clk 0:03:00]}  e5 {[%clk 0:02:56]} 3. dxe5 {[%clk 0:03:00]}  Ng4 {[%clk 0:02:56]} 4. Bf4 {[%clk 0:03:00]}  Nc6 {[%clk 0:02:56]} 5. Nf3 {[%clk 0:02:59]}  f6 {[%clk 0:02:56]} 6. e6 {[%clk 0:02:56]}  Bb4+ {[%clk 0:02:38]} 7. Nc3 {[%clk 0:02:55]}  Bxc3+ {[%clk 0:02:29]} 8. bxc3 {[%clk 0:02:56]}  dxe6 {[%clk 0:02:29]} 9. Qxd8+ {[%clk 0:02:55]}  Kxd8 {[%clk 0:02:29]} 10. h3 {[%clk 0:02:55]}  e5 {[%clk 0:02:04]} 11. hxg4 {[%clk 0:02:29]}  exf4 {[%clk 0:02:03]} 12. g5 {[%clk 0:02:27]}  Ke7 {[%clk 0:01:35]} 13. gxf6+ {[%clk 0:02:05]}  Kxf6 {[%clk 0:01:33]} 14. O-O-O {[%clk 0:02:04]}  Bf5 {[%clk 0:00:37]} 15. Nd4 {[%clk 0:01:42]}  Rad8 {[%clk 0:00:27]} 16. e3 {[%clk 0:01:31]}  fxe3 {[%clk 0:00:26]} 17. fxe3 {[%clk 0:01:32]}  Be4 {[%clk 0:00:21]} 18. Rh4 {[%clk 0:01:28]}  Rhe8 {[%clk 0:00:17]} 19. Rf4+ {[%clk 0:01:24]}  Kg5 {[%clk 0:00:16]} 20. Be2 {[%clk 0:01:24]}  Bg6 {[%clk 0:00:14]} 21. Nf3+ {[%clk 0:01:19]}  Kh6 {[%clk 0:00:12]} 22. Rh1+ {[%clk 0:01:15]}  Bh5 {[%clk 0:00:12]} 23. g4 {[%clk 0:01:15]}  Rxe3 {[%clk 0:00:11]} 24. Rxh5+ {[%clk 0:01:15]}  Kg6 {[%clk 0:00:10]} 25. Nh4# {[%clk 0:01:15]} 1-0


[Site "https://www.chess.com"]

[Event "Titled Tuesday Blitz October 25 Late 2022"]
[White "Makarian, Rudik"]
[Black "Kamsky, Gata"]
[WhiteFideId "44105681"]
[BlackFideId "2000024"]
[WhiteElo "2405"]
[BlackElo "2666"]
[Result "0-1"]
[Round "10"]
[TimeControl "180+1"]
[Date "2022.10.26"]
[WhiteClock "0:00:02"]
[BlackClock "0:00:36"]

1. Nf3 {[%clk 0:03:00]}  g6 {[%clk 0:02:56]} 2. c4 {[%clk 0:02:59]}  Bg7 {[%clk 0:02:56]} 3. Nc3 {[%clk 0:03:00]}  d6 {[%clk 0:02:55]} 4. g3 {[%clk 0:03:00]}  Nf6 {[%clk 0:02:54]} 5. Bg2 {[%clk 0:03:01]}  c5 {[%clk 0:02:54]} 6. O-O {[%clk 0:02:59]}  Nc6 {[%clk 0:02:54]} 7. a3 {[%clk 0:02:54]}  O-O {[%clk 0:02:52]} 8. Rb1 {[%clk 0:02:54]}  Bf5 {[%clk 0:02:48]} 9. d3 {[%clk 0:02:54]}  Qd7 {[%clk 0:02:47]} 10. b4 {[%clk 0:02:52]}  Bh3 {[%clk 0:02:43]} 11. b5 {[%clk 0:02:44]}  Nd4 {[%clk 0:02:38]} 12. Bg5 {[%clk 0:02:43]}  Nxf3+ {[%clk 0:02:36]} 13. exf3 {[%clk 0:02:44]}  Bxg2 {[%clk 0:02:36]} 14. Kxg2 {[%clk 0:02:44]}  e6 {[%clk 0:02:26]} 15. Re1 {[%clk 0:02:32]}  d5 {[%clk 0:02:24]} 16. cxd5 {[%clk 0:02:24]}  Nxd5 {[%clk 0:02:23]} 17. Ne4 {[%clk 0:02:22]}  b6 {[%clk 0:02:20]} 18. Qc2 {[%clk 0:02:15]}  h6 {[%clk 0:02:17]} 19. Be3 {[%clk 0:02:08]}  Rfd8 {[%clk 0:02:14]} 20. Rb3 {[%clk 0:02:02]}  a6 {[%clk 0:02:13]} 21. bxa6 {[%clk 0:01:58]}  Rxa6 {[%clk 0:02:12]} 22. Reb1 {[%clk 0:01:59]}  Rda8 {[%clk 0:01:59]} 23. Bc1 {[%clk 0:01:52]}  Qd8 {[%clk 0:01:52]} 24. Nd2 {[%clk 0:01:49]}  b5 {[%clk 0:01:46]} 25. Ne4 {[%clk 0:01:20]}  b4 {[%clk 0:01:46]} 26. Nxc5 {[%clk 0:01:20]}  Rxa3 {[%clk 0:01:45]} 27. Bxa3 {[%clk 0:01:08]}  bxa3 {[%clk 0:01:45]} 28. Na4 {[%clk 0:00:31]}  Qd6 {[%clk 0:01:34]} 29. Rb7 {[%clk 0:00:22]}  a2 {[%clk 0:01:05]} 30. Qxa2 {[%clk 0:00:21]}  Nc3 {[%clk 0:01:05]} 31. Nxc3 {[%clk 0:00:18]}  Rxa2 {[%clk 0:01:04]} 32. Nxa2 {[%clk 0:00:18]}  Qxd3 {[%clk 0:01:04]} 33. R7b3 {[%clk 0:00:18]}  Qd2 {[%clk 0:01:00]} 34. Nb4 {[%clk 0:00:17]}  Bd4 {[%clk 0:00:59]} 35. Nd3 {[%clk 0:00:16]}  e5 {[%clk 0:00:57]} 36. Rf1 {[%clk 0:00:14]}  Qc2 {[%clk 0:00:56]} 37. Rb8+ {[%clk 0:00:14]}  Kg7 {[%clk 0:00:56]} 38. Nb4 {[%clk 0:00:13]}  Qc7 {[%clk 0:00:54]} 39. Rb5 {[%clk 0:00:13]}  Qc4 {[%clk 0:00:52]} 40. Rb7 {[%clk 0:00:12]}  Bc5 {[%clk 0:00:50]} 41. Nc6 {[%clk 0:00:11]}  Qd5 {[%clk 0:00:50]} 42. Rc7 {[%clk 0:00:09]}  Bb6 {[%clk 0:00:49]} 43. Rc8 {[%clk 0:00:09]}  Qd7 {[%clk 0:00:49]} 44. Nxe5 {[%clk 0:00:02]}  Qxc8 {[%clk 0:00:49]} 45. h4 {[%clk 0:00:02]}  h5 {[%clk 0:00:47]} 46. Nd3 {[%clk 0:00:02]}  Qc2 {[%clk 0:00:47]} 47. Nf4 {[%clk 0:00:02]}  Qd2 {[%clk 0:00:45]} 48. Nh3 {[%clk 0:00:02]}  f6 {[%clk 0:00:44]} 49. Rb1 {[%clk 0:00:03]}  Bd4 {[%clk 0:00:42]} 50. Rb7+ {[%clk 0:00:03]}  Kh6 {[%clk 0:00:42]} 51. Rd7 {[%clk 0:00:03]}  Qb2 {[%clk 0:00:39]} 52. Rd6 {[%clk 0:00:02]}  Bc5 {[%clk 0:00:38]} 53. Rd7 {[%clk 0:00:02]}  g5 {[%clk 0:00:36]} 54. hxg5+ {[%clk 0:00:02]}  fxg5 {[%clk 0:00:36]} 55. Rd5 {[%clk 0:00:02]}  Be7 {[%clk 0:00:36]} 0-1


[Site "https://www.chess.com"]

[Event "Titled Tuesday Blitz October 25 Late 2022"]
[White "Marcolino, Daniel Mattos"]
[Black "Mickiewicz, Piotr"]
[WhiteFideId "2106841"]
[BlackFideId "1114891"]
[WhiteElo "2089"]
[BlackElo "2246"]
[Result "1/2-1/2"]
[Round "10"]
[TimeControl "180+1"]
[Date "2022.10.26"]
[WhiteClock "0:00:15"]
[BlackClock "0:00:13"]

1. d4 {[%clk 0:02:10]}  Nf6 {[%clk 0:02:57]} 2. Nf3 {[%clk 0:02:10]}  e6 {[%clk 0:02:57]} 3. g3 {[%clk 0:02:11]}  b6 {[%clk 0:02:55]} 4. Bg2 {[%clk 0:02:12]}  Bb7 {[%clk 0:02:55]} 5. O-O {[%clk 0:02:12]}  Be7 {[%clk 0:02:55]} 6. c4 {[%clk 0:02:13]}  c5 {[%clk 0:02:54]} 7. Nc3 {[%clk 0:02:11]}  cxd4 {[%clk 0:02:53]} 8. Qxd4 {[%clk 0:02:12]}  d6 {[%clk 0:02:49]} 9. Bg5 {[%clk 0:02:11]}  a6 {[%clk 0:02:44]} 10. Rfd1 {[%clk 0:02:06]}  Nbd7 {[%clk 0:02:43]} 11. Rac1 {[%clk 0:02:03]}  O-O {[%clk 0:02:36]} 12. b3 {[%clk 0:02:03]}  Qc7 {[%clk 0:02:35]} 13. Qd2 {[%clk 0:01:53]}  Rfe8 {[%clk 0:02:32]} 14. Bf4 {[%clk 0:01:53]}  Ne5 {[%clk 0:02:26]} 15. Nxe5 {[%clk 0:01:38]}  Bxg2 {[%clk 0:02:21]} 16. Kxg2 {[%clk 0:01:37]}  dxe5 {[%clk 0:02:20]} 17. Bg5 {[%clk 0:01:38]}  Qc6+ {[%clk 0:02:15]} 18. f3 {[%clk 0:01:29]}  Rad8 {[%clk 0:02:14]} 19. Qc2 {[%clk 0:01:28]}  h6 {[%clk 0:01:19]} 20. Bxf6 {[%clk 0:01:28]}  Bxf6 {[%clk 0:01:17]} 21. Ne4 {[%clk 0:01:28]}  Be7 {[%clk 0:01:16]} 22. Rxd8 {[%clk 0:01:27]}  Rxd8 {[%clk 0:01:15]} 23. Rd1 {[%clk 0:01:28]}  Rd4 {[%clk 0:01:09]} 24. e3 {[%clk 0:01:21]}  Rxd1 {[%clk 0:01:07]} 25. Qxd1 {[%clk 0:01:22]}  f5 {[%clk 0:01:06]} 26. Nf2 {[%clk 0:01:06]}  Bc5 {[%clk 0:01:02]} 27. Qd3 {[%clk 0:00:50]}  Kf7 {[%clk 0:00:55]} 28. e4 {[%clk 0:00:50]}  g6 {[%clk 0:00:48]} 29. h3 {[%clk 0:00:45]}  Ke7 {[%clk 0:00:45]} 30. g4 {[%clk 0:00:45]}  Bxf2 {[%clk 0:00:43]} 31. Kxf2 {[%clk 0:00:44]}  Qc5+ {[%clk 0:00:42]} 32. Qe3 {[%clk 0:00:43]}  Qd4 {[%clk 0:00:41]} 33. gxf5 {[%clk 0:00:39]}  Qxe3+ {[%clk 0:00:37]} 34. Kxe3 {[%clk 0:00:37]}  exf5 {[%clk 0:00:38]} 35. exf5 {[%clk 0:00:35]}  gxf5 {[%clk 0:00:36]} 36. b4 {[%clk 0:00:32]}  a5 {[%clk 0:00:34]} 37. a3 {[%clk 0:00:32]}  a4 {[%clk 0:00:34]} 38. Kf2 {[%clk 0:00:20]}  h5 {[%clk 0:00:32]} 39. Kg3 {[%clk 0:00:19]}  Kf6 {[%clk 0:00:32]} 40. h4 {[%clk 0:00:15]}  Ke6 {[%clk 0:00:31]} 41. Kf2 {[%clk 0:00:15]}  Kd6 {[%clk 0:00:13]} 42. Ke3 {[%clk 0:00:16]}  Kc6 {[%clk 0:00:13]} 43. Kd3 {[%clk 0:00:16]}  Kc7 {[%clk 0:00:13]} 44. Ke3 {[%clk 0:00:16]}  Kd6 {[%clk 0:00:14]} 45. Kd3 {[%clk 0:00:17]}  Ke6 {[%clk 0:00:14]} 46. Ke3 {[%clk 0:00:17]}  Kf6 {[%clk 0:00:15]} 47. Kd3 {[%clk 0:00:18]}  Ke7 {[%clk 0:00:14]} 48. Ke3 {[%clk 0:00:18]}  Kd6 {[%clk 0:00:14]} 49. Kd3 {[%clk 0:00:19]}  Kc6 {[%clk 0:00:14]} 50. Ke3 {[%clk 0:00:20]}  b5 {[%clk 0:00:15]} 51. cxb5+ {[%clk 0:00:16]}  Kxb5 {[%clk 0:00:14]} 52. Kd3 {[%clk 0:00:17]}  Kb6 {[%clk 0:00:15]} 53. Kc4 {[%clk 0:00:16]}  Kc6 {[%clk 0:00:14]} 54. Kd3 {[%clk 0:00:16]}  Kd5 {[%clk 0:00:14]} 55. Ke3 {[%clk 0:00:16]}  Kc4 {[%clk 0:00:14]} 56. Ke2 {[%clk 0:00:14]}  Kd4 {[%clk 0:00:14]} 57. Kd2 {[%clk 0:00:14]}  Kc4 {[%clk 0:00:13]} 58. Ke2 {[%clk 0:00:14]}  Kd4 {[%clk 0:00:13]} 59. Kd2 {[%clk 0:00:15]}  Kc4 {[%clk 0:00:13]} 60. Ke2 {[%clk 0:00:15]} 1/2-1/2


[Site "https://www.chess.com"]